[Event "December 5 Late 2023"]
[Site "https://www.chess.com"]
[Date "2023.12.05"]
[Round "6"]
[White "Urazayev, Arystanbek"]
[Black "Keleberda, Tymur"]
[Result "1-0"]
[Board "37"]
[TimeControl "180+1"]
[WhiteFideId "13709810"]
[BlackFideId "14174294"]
[WhiteElo "2777"]
[BlackElo "2510"]
[WhiteTeam "KAZ"]
[BlackTeam "CAN"]
[WhiteClock "0:00:30"]
[BlackClock "0:00:15"]

1. d4 {[%clk 0:02:56]}  Nf6 {[%clk 0:02:58]} 2. c4 {[%clk 0:02:56]}  e6 {[%clk 0:02:58]} 3. Nc3 {[%clk 0:02:57]}  Bb4 {[%clk 0:02:58]} 4. e3 {[%clk 0:02:58]}  b6 {[%clk 0:02:56]} 5. Ne2 {[%clk 0:02:55]}  Ne4 {[%clk 0:02:49]} 6. Bd2 {[%clk 0:02:53]}  Nxd2 {[%clk 0:02:42]} 7. Qxd2 {[%clk 0:02:53]}  Bb7 {[%clk 0:02:40]} 8. a3 {[%clk 0:02:54]}  Be7 {[%clk 0:02:40]} 9. Ng3 {[%clk 0:02:54]}  h5 {[%clk 0:02:40]} 10. h3 {[%clk 0:02:50]}  h4 {[%clk 0:02:39]} 11. Nge2 {[%clk 0:02:49]}  d6 {[%clk 0:02:37]} 12. Nf4 {[%clk 0:02:41]}  Nd7 {[%clk 0:02:33]} 13. d5 {[%clk 0:02:32]}  e5 {[%clk 0:02:28]} 14. Nd3 {[%clk 0:02:32]}  Bg5 {[%clk 0:02:10]} 15. Be2 {[%clk 0:02:27]}  O-O {[%clk 0:02:07]} 16. Qc2 {[%clk 0:02:21]}  f5 {[%clk 0:02:01]} 17. e4 {[%clk 0:02:21]}  g6 {[%clk 0:01:31]} 18. O-O {[%clk 0:02:21]}  Nf6 {[%clk 0:01:28]} 19. exf5 {[%clk 0:02:18]}  gxf5 {[%clk 0:01:28]} 20. f4 {[%clk 0:02:19]}  exf4 {[%clk 0:01:07]} 21. Nxf4 {[%clk 0:02:20]}  Bc8 {[%clk 0:00:51]} 22. Ne6 {[%clk 0:02:14]}  Be3+ {[%clk 0:00:39]} 23. Kh1 {[%clk 0:02:14]}  Bxe6 {[%clk 0:00:37]} 24. dxe6 {[%clk 0:02:15]}  f4 {[%clk 0:00:31]} 25. Qg6+ {[%clk 0:01:52]}  Kh8 {[%clk 0:00:30]} 26. Nd5 {[%clk 0:01:41]}  Nxd5 {[%clk 0:00:28]} 27. Qh5+ {[%clk 0:01:40]}  Kg7 {[%clk 0:00:25]} 28. cxd5 {[%clk 0:01:36]}  Qf6 {[%clk 0:00:21]} 29. Rac1 {[%clk 0:01:19]}  c5 {[%clk 0:00:16]} 30. Rc3 {[%clk 0:00:59]}  Qg6 {[%clk 0:00:15]} 31. Qxh4 {[%clk 0:00:44]}  Rf6 {[%clk 0:00:12]} 32. Bh5 {[%clk 0:00:40]}  Qe4 {[%clk 0:00:08]} 33. Qg5+ {[%clk 0:00:38]}  Rg6 {[%clk 0:00:09]} 34. Bxg6 {[%clk 0:00:35]}  Qxg6 {[%clk 0:00:10]} 35. Qe7+ {[%clk 0:00:32]}  Kh6 {[%clk 0:00:10]} 36. Qh4+ {[%clk 0:00:33]}  Kg7 {[%clk 0:00:10]} 37. Rxf4 {[%clk 0:00:29]}  Qb1+ {[%clk 0:00:08]} 38. Kh2 {[%clk 0:00:29]}  Qg1+ {[%clk 0:00:08]} 39. Kg3 {[%clk 0:00:28]}  Qe1+ {[%clk 0:00:08]} 40. Kf3 {[%clk 0:00:25]}  Qxh4 {[%clk 0:00:01]} 41. Rxh4 {[%clk 0:00:25]}  Bd4 {[%clk 0:00:01]} 42. Rxd4 {[%clk 0:00:24]}  cxd4 {[%clk 0:00:01]} 43. Rc7+ {[%clk 0:00:25]}  Kf6 {[%clk 0:00:02]} 44. Ke4 {[%clk 0:00:25]}  Rg8 {[%clk 0:00:02]} 45. Rf7+ {[%clk 0:00:26]}  Kg6 {[%clk 0:00:03]} 46. Kxd4 {[%clk 0:00:26]}  Rc8 {[%clk 0:00:03]} 47. Rxa7 {[%clk 0:00:26]}  Rc1 {[%clk 0:00:03]} 48. Rd7 {[%clk 0:00:23]}  Rd1+ {[%clk 0:00:03]} 49. Kc4 {[%clk 0:00:24]}  Rc1+ {[%clk 0:00:04]} 50. Kb4 {[%clk 0:00:24]}  Rd1 {[%clk 0:00:04]} 51. Rxd6 {[%clk 0:00:24]}  Kf6 {[%clk 0:00:05]} 52. Rd7 {[%clk 0:00:24]}  Rd2 {[%clk 0:00:05]} 53. e7 {[%clk 0:00:23]}  Kf7 {[%clk 0:00:05]} 54. d6 {[%clk 0:00:23]}  Rxd6 {[%clk 0:00:06]} 55. Rxd6 {[%clk 0:00:23]}  Kxe7 {[%clk 0:00:07]} 56. Rxb6 {[%clk 0:00:24]}  Kd7 {[%clk 0:00:07]} 57. a4 {[%clk 0:00:25]}  Kc7 {[%clk 0:00:08]} 58. a5 {[%clk 0:00:26]}  Kc8 {[%clk 0:00:09]} 59. h4 {[%clk 0:00:27]}  Kc7 {[%clk 0:00:09]} 60. h5 {[%clk 0:00:27]}  Kd7 {[%clk 0:00:10]} 61. h6 {[%clk 0:00:28]}  Ke7 {[%clk 0:00:11]} 62. g4 {[%clk 0:00:29]}  Kf7 {[%clk 0:00:12]} 63. g5 {[%clk 0:00:30]}  Ke7 {[%clk 0:00:12]} 64. g6 {[%clk 0:00:31]}  Kd7 {[%clk 0:00:12]} 65. h7 {[%clk 0:00:31]}  Kd8 {[%clk 0:00:13]} 66. h8=Q+ {[%clk 0:00:31]}  Kc7 {[%clk 0:00:14]} 67. Qg7+ {[%clk 0:00:32]}  Kc8 {[%clk 0:00:14]} 68. Qf7 {[%clk 0:00:30]}  Kd8 {[%clk 0:00:15]} 69. Rb8# {[%clk 0:00:30]} 1-0

[Event "December 5 Late 2023"]
[Site "https://www.chess.com"]
[Date "2023.12.05"]
[Round "6"]
[White "Skvortsov, Andrei"]
[Black "Della Morte, German"]
[Result "1-0"]
[Board "38"]
[TimeControl "180+1"]
[WhiteFideId "24108600"]
[BlackFideId "113522"]
[WhiteElo "2754"]
[BlackElo "2480"]
[WhiteTeam "MNE"]
[BlackTeam "ARG"]
[WhiteClock "0:01:01"]
[BlackClock "0:01:14"]

1. e4 {[%clk 0:03:00]}  c6 {[%clk 0:02:59]} 2. e5 {[%clk 0:02:59]}  d5 {[%clk 0:02:59]} 3. exd6 {[%clk 0:03:00]}  exd6 {[%clk 0:02:59]} 4. d4 {[%clk 0:03:01]}  d5 {[%clk 0:03:00]} 5. Nf3 {[%clk 0:03:01]}  Bd6 {[%clk 0:03:00]} 6. Bd3 {[%clk 0:03:02]}  Nf6 {[%clk 0:03:00]} 7. Qe2+ {[%clk 0:03:02]}  Qe7 {[%clk 0:03:00]} 8. Qxe7+ {[%clk 0:03:03]}  Bxe7 {[%clk 0:03:00]} 9. O-O {[%clk 0:02:59]}  O-O {[%clk 0:02:59]} 10. Bf4 {[%clk 0:02:57]}  Bg4 {[%clk 0:02:59]} 11. Re1 {[%clk 0:02:57]}  Bb4 {[%clk 0:02:48]} 12. c3 {[%clk 0:02:50]}  Bxf3 {[%clk 0:02:48]} 13. cxb4 {[%clk 0:02:49]}  Be4 {[%clk 0:02:47]} 14. Bf1 {[%clk 0:02:49]}  Nbd7 {[%clk 0:02:46]} 15. Nc3 {[%clk 0:02:45]}  a6 {[%clk 0:02:46]} 16. f3 {[%clk 0:02:35]}  Bf5 {[%clk 0:02:45]} 17. g4 {[%clk 0:02:35]}  Bg6 {[%clk 0:02:45]} 18. h4 {[%clk 0:02:35]}  h6 {[%clk 0:02:44]} 19. Na4 {[%clk 0:02:22]}  Rfe8 {[%clk 0:02:42]} 20. Kf2 {[%clk 0:02:20]}  Bc2 {[%clk 0:02:40]} 21. Nc5 {[%clk 0:02:18]}  Nxc5 {[%clk 0:02:39]} 22. bxc5 {[%clk 0:02:18]}  Bg6 {[%clk 0:02:35]} 23. Rec1 {[%clk 0:02:06]}  Re6 {[%clk 0:02:34]} 24. Rc3 {[%clk 0:02:06]}  Rae8 {[%clk 0:02:33]} 25. Rb3 {[%clk 0:02:03]}  R6e7 {[%clk 0:02:31]} 26. Bd6 {[%clk 0:02:02]}  Rd7 {[%clk 0:02:27]} 27. g5 {[%clk 0:01:48]}  hxg5 {[%clk 0:02:26]} 28. hxg5 {[%clk 0:01:47]}  Nh7 {[%clk 0:02:26]} 29. Bh3 {[%clk 0:01:47]}  Re6 {[%clk 0:02:26]} 30. f4 {[%clk 0:01:38]}  Be4 {[%clk 0:02:15]} 31. Bxe6 {[%clk 0:01:31]}  fxe6 {[%clk 0:02:15]} 32. Rc1 {[%clk 0:01:22]}  Rf7 {[%clk 0:02:15]} 33. Kg3 {[%clk 0:01:21]}  Nf8 {[%clk 0:02:11]} 34. Bxf8 {[%clk 0:01:19]}  Kxf8 {[%clk 0:02:12]} 35. Rcc3 {[%clk 0:01:16]}  Bb1 {[%clk 0:02:03]} 36. a3 {[%clk 0:01:13]}  Ba2 {[%clk 0:02:00]} 37. Rb6 {[%clk 0:01:13]}  Ke8 {[%clk 0:01:52]} 38. b3 {[%clk 0:01:11]}  Bb1 {[%clk 0:01:50]} 39. Rc1 {[%clk 0:01:11]}  Bf5 {[%clk 0:01:48]} 40. a4 {[%clk 0:01:11]}  Kd8 {[%clk 0:01:48]} 41. b4 {[%clk 0:01:11]}  Bd3 {[%clk 0:01:46]} 42. Rc3 {[%clk 0:01:10]}  Bc4 {[%clk 0:01:45]} 43. Kg4 {[%clk 0:01:06]}  Kc7 {[%clk 0:01:45]} 44. Rh3 {[%clk 0:01:07]}  Be2+ {[%clk 0:01:26]} 45. Kg3 {[%clk 0:01:06]}  Bd3 {[%clk 0:01:25]} 46. Rh8 {[%clk 0:01:06]}  Bc2 {[%clk 0:01:22]} 47. b5 {[%clk 0:01:05]}  Bxa4 {[%clk 0:01:19]} 48. bxa6 {[%clk 0:01:04]}  bxa6 {[%clk 0:01:20]} 49. Ra8 {[%clk 0:01:02]}  Bb5 {[%clk 0:01:14]} 50. Ra7+ {[%clk 0:01:01]} 1-0

[Event "December 5 Late 2023"]
[Site "https://www.chess.com"]
[Date "2023.12.05"]
[Round "6"]
[White "Kosteniuk, Alexandra"]
[Black "Bonin, Jay"]
[Result "1-0"]
[Board "39"]
[TimeControl "180+1"]
[WhiteFideId "4128125"]
[BlackFideId "2000644"]
[WhiteElo "2743"]
[BlackElo "2398"]
[WhiteTeam "SUI"]
[BlackTeam "USA"]
[WhiteClock "0:00:09"]
[BlackClock "0:00:00"]

1. d4 {[%clk 0:03:00]}  Nf6 {[%clk 0:02:58]} 2. c4 {[%clk 0:03:00]}  e6 {[%clk 0:02:58]} 3. Nc3 {[%clk 0:03:01]}  Bb4 {[%clk 0:02:56]} 4. e3 {[%clk 0:03:01]}  c5 {[%clk 0:02:55]} 5. a3 {[%clk 0:02:59]}  Bxc3+ {[%clk 0:02:54]} 6. bxc3 {[%clk 0:03:00]}  Nc6 {[%clk 0:02:52]} 7. Nf3 {[%clk 0:02:57]}  b6 {[%clk 0:02:51]} 8. d5 {[%clk 0:02:53]}  Na5 {[%clk 0:02:50]} 9. Bd3 {[%clk 0:02:51]}  Ba6 {[%clk 0:02:48]} 10. Qe2 {[%clk 0:02:35]}  O-O {[%clk 0:02:43]} 11. O-O {[%clk 0:02:27]}  Re8 {[%clk 0:02:40]} 12. Nd2 {[%clk 0:02:16]}  d6 {[%clk 0:02:30]} 13. e4 {[%clk 0:02:15]}  Qd7 {[%clk 0:02:23]} 14. f4 {[%clk 0:02:07]}  Qa4 {[%clk 0:02:06]} 15. e5 {[%clk 0:01:47]}  exd5 {[%clk 0:02:03]} 16. Qf2 {[%clk 0:01:40]}  dxe5 {[%clk 0:01:56]} 17. fxe5 {[%clk 0:01:40]}  Rxe5 {[%clk 0:01:55]} 18. Nf3 {[%clk 0:01:40]}  Ree8 {[%clk 0:01:47]} 19. Ng5 {[%clk 0:01:37]}  Bxc4 {[%clk 0:01:34]} 20. Bxh7+ {[%clk 0:01:34]}  Nxh7 {[%clk 0:01:26]} 21. Qxf7+ {[%clk 0:01:34]}  Kh8 {[%clk 0:01:26]} 22. Nxh7 {[%clk 0:01:01]}  Bxf1 {[%clk 0:01:20]} 23. Bh6 {[%clk 0:00:50]}  Qg4 {[%clk 0:01:08]} 24. Rxf1 {[%clk 0:00:42]}  Re2 {[%clk 0:00:59]} 25. Qxd5 {[%clk 0:00:26]}  Rae8 {[%clk 0:00:36]} 26. Ng5 {[%clk 0:00:26]}  gxh6 {[%clk 0:00:23]} 27. Nf7+ {[%clk 0:00:27]}  Kg7 {[%clk 0:00:22]} 28. Nd6 {[%clk 0:00:26]}  Rxg2+ {[%clk 0:00:16]} 29. Qxg2 {[%clk 0:00:26]}  Qxg2+ {[%clk 0:00:16]} 30. Kxg2 {[%clk 0:00:27]}  Re2+ {[%clk 0:00:14]} 31. Kg1 {[%clk 0:00:20]}  Ra2 {[%clk 0:00:13]} 32. Rf7+ {[%clk 0:00:20]}  Kg6 {[%clk 0:00:12]} 33. Rxa7 {[%clk 0:00:21]}  Rxa3 {[%clk 0:00:11]} 34. Ra6 {[%clk 0:00:17]}  Rxc3 {[%clk 0:00:09]} 35. Rxb6 {[%clk 0:00:17]}  Kg7 {[%clk 0:00:07]} 36. Nf5+ {[%clk 0:00:17]}  Kf8 {[%clk 0:00:07]} 37. Rxh6 {[%clk 0:00:16]}  c4 {[%clk 0:00:07]} 38. Ra6 {[%clk 0:00:16]}  Ra3 {[%clk 0:00:05]} 39. h4 {[%clk 0:00:15]}  c3 {[%clk 0:00:05]} 40. Nd4 {[%clk 0:00:15]}  Ra4 {[%clk 0:00:04]} 41. Nc2 {[%clk 0:00:09]}  Ra2 {[%clk 0:00:03]} 42. Nb4 {[%clk 0:00:09]}  Ra4 {[%clk 0:00:03]} 43. Nc2 {[%clk 0:00:08]}  Ra2 {[%clk 0:00:03]} 44. Ne3 {[%clk 0:00:09]}  c2 {[%clk 0:00:01]} 45. Nxc2 {[%clk 0:00:09]}  Rxc2 {[%clk 0:00:00]} 46. Rxa5 {[%clk 0:00:09]} 1-0

[Event "December 5 Late 2023"]
[Site "https://www.chess.com"]
[Date "2023.12.05"]
[Round "6"]
[White "Gabuzyan, Hovhannes"]
[Black "yaguigor"]
[Result "0-1"]
[Board "40"]
[TimeControl "180+1"]
[WhiteFideId "13303732"]
[WhiteElo "2837"]
[BlackElo "2402"]
[WhiteTeam "ARM"]
[WhiteClock "0:00:54"]
[BlackClock "0:00:10"]

1. e4 {[%clk 0:03:00]}  c5 {[%clk 0:02:59]} 2. Nc3 {[%clk 0:03:00]}  Nc6 {[%clk 0:02:59]} 3. Bb5 {[%clk 0:03:00]}  Nd4 {[%clk 0:02:59]} 4. Bc4 {[%clk 0:03:01]}  e6 {[%clk 0:02:59]} 5. Nge2 {[%clk 0:03:01]}  Nf6 {[%clk 0:02:54]} 6. O-O {[%clk 0:03:01]}  a6 {[%clk 0:02:47]} 7. a4 {[%clk 0:03:01]}  b6 {[%clk 0:02:31]} 8. d3 {[%clk 0:03:00]}  Nxe2+ {[%clk 0:02:20]} 9. Qxe2 {[%clk 0:02:59]}  d6 {[%clk 0:02:19]} 10. f4 {[%clk 0:02:59]}  Bb7 {[%clk 0:02:13]} 11. f5 {[%clk 0:02:59]}  exf5 {[%clk 0:01:56]} 12. Rxf5 {[%clk 0:02:57]}  Be7 {[%clk 0:01:56]} 13. Bg5 {[%clk 0:02:57]}  Bc8 {[%clk 0:01:54]} 14. Rf2 {[%clk 0:02:55]}  Bg4 {[%clk 0:01:51]} 15. Qd2 {[%clk 0:02:46]}  Be6 {[%clk 0:01:50]} 16. Bxf6 {[%clk 0:02:44]}  Bxf6 {[%clk 0:01:49]} 17. Kh1 {[%clk 0:02:24]}  O-O {[%clk 0:01:44]} 18. Raf1 {[%clk 0:02:22]}  Bxc3 {[%clk 0:01:23]} 19. Qxc3 {[%clk 0:02:20]}  Qe7 {[%clk 0:01:21]} 20. Rf3 {[%clk 0:02:18]}  Bxc4 {[%clk 0:01:09]} 21. Qxc4 {[%clk 0:02:19]}  Qe6 {[%clk 0:01:09]} 22. Qc3 {[%clk 0:02:17]}  f6 {[%clk 0:01:07]} 23. Rf5 {[%clk 0:02:16]}  b5 {[%clk 0:01:05]} 24. axb5 {[%clk 0:02:13]}  axb5 {[%clk 0:01:04]} 25. g4 {[%clk 0:02:09]}  b4 {[%clk 0:00:59]} 26. Qe1 {[%clk 0:02:07]}  g6 {[%clk 0:00:58]} 27. R5f4 {[%clk 0:02:06]}  Qe5 {[%clk 0:00:57]} 28. Qf2 {[%clk 0:02:00]}  Qxb2 {[%clk 0:00:52]} 29. g5 {[%clk 0:02:01]}  Qd4 {[%clk 0:00:49]} 30. Qxd4 {[%clk 0:01:56]}  cxd4 {[%clk 0:00:49]} 31. Rxf6 {[%clk 0:01:57]}  Rfc8 {[%clk 0:00:41]} 32. R1f2 {[%clk 0:01:54]}  Ra2 {[%clk 0:00:35]} 33. Rxd6 {[%clk 0:01:54]}  b3 {[%clk 0:00:35]} 34. Rf1 {[%clk 0:01:34]}  bxc2 {[%clk 0:00:31]} 35. Rc1 {[%clk 0:01:31]}  Rb2 {[%clk 0:00:30]} 36. Rf6 {[%clk 0:01:30]}  Rb3 {[%clk 0:00:27]} 37. Rf2 {[%clk 0:01:28]}  Rxd3 {[%clk 0:00:26]} 38. Rfxc2 {[%clk 0:01:28]}  Rdc3 {[%clk 0:00:26]} 39. Rxc3 {[%clk 0:01:26]}  dxc3 {[%clk 0:00:26]} 40. Kg2 {[%clk 0:01:25]}  Kf7 {[%clk 0:00:27]} 41. Kf3 {[%clk 0:01:25]}  c2 {[%clk 0:00:25]} 42. Ke3 {[%clk 0:01:25]}  Ke6 {[%clk 0:00:25]} 43. Kd4 {[%clk 0:01:22]}  Rc7 {[%clk 0:00:24]} 44. h3 {[%clk 0:01:22]}  Rc8 {[%clk 0:00:24]} 45. h4 {[%clk 0:01:19]}  Rc7 {[%clk 0:00:23]} 46. e5 {[%clk 0:01:17]}  Rc8 {[%clk 0:00:19]} 47. Ke4 {[%clk 0:01:17]}  Rc4+ {[%clk 0:00:18]} 48. Kd3 {[%clk 0:01:17]}  Rxh4 {[%clk 0:00:17]} 49. Rxc2 {[%clk 0:01:17]}  Kxe5 {[%clk 0:00:17]} 50. Rc5+ {[%clk 0:01:10]}  Kf4 {[%clk 0:00:17]} 51. Ke2 {[%clk 0:01:05]}  Rh2+ {[%clk 0:00:17]} 52. Kf1 {[%clk 0:01:05]}  Kf3 {[%clk 0:00:16]} 53. Kg1 {[%clk 0:01:02]}  Rh5 {[%clk 0:00:16]} 54. Ra5 {[%clk 0:00:58]}  Kf4 {[%clk 0:00:16]} 55. Kf2 {[%clk 0:00:57]}  Rxg5 {[%clk 0:00:16]} 56. Ra4+ {[%clk 0:00:57]}  Kf5 {[%clk 0:00:16]} 57. Ra7 {[%clk 0:00:58]}  h5 {[%clk 0:00:15]} 58. Kf3 {[%clk 0:00:59]}  Rg4 {[%clk 0:00:15]} 59. Ra5+ {[%clk 0:00:59]}  Kf6 {[%clk 0:00:15]} 60. Ra6+ {[%clk 0:00:59]}  Kg5 {[%clk 0:00:15]} 61. Ra1 {[%clk 0:00:58]}  Rb4 {[%clk 0:00:14]} 62. Rg1+ {[%clk 0:00:57]}  Kf5 {[%clk 0:00:14]} 63. Rc1 {[%clk 0:00:55]}  Rb3+ {[%clk 0:00:14]} 64. Kg2 {[%clk 0:00:55]}  h4 {[%clk 0:00:14]} 65. Rc5+ {[%clk 0:00:55]}  Kg4 {[%clk 0:00:14]} 66. Rc4+ {[%clk 0:00:55]}  Kh5 {[%clk 0:00:15]} 67. Rc8 {[%clk 0:00:54]}  g5 {[%clk 0:00:15]} 68. Rg8 {[%clk 0:00:53]}  Rb2+ {[%clk 0:00:12]} 69. Kf3 {[%clk 0:00:53]}  g4+ {[%clk 0:00:11]} 70. Kf4 {[%clk 0:00:54]}  Rf2+ {[%clk 0:00:10]} 71. Ke3 {[%clk 0:00:54]}  g3 {[%clk 0:00:11]} 72. Rh8+ {[%clk 0:00:54]}  Kg4 {[%clk 0:00:10]} 73. Rg8+ {[%clk 0:00:55]}  Kh3 {[%clk 0:00:11]} 74. Rf8 {[%clk 0:00:54]}  Rxf8 {[%clk 0:00:10]} 0-1

[Event "December 5 Late 2023"]
[Site "https://www.chess.com"]
[Date "2023.12.05"]
[Round "6"]
[White "Osmak, Yuliia"]
[Black "Shuvalova, Polina"]
[Result "0-1"]
[Board "41"]
[TimeControl "180+1"]
[WhiteFideId "14101602"]
[BlackFideId "24171760"]
[WhiteElo "2573"]
[BlackElo "2836"]
[WhiteTeam "UKR"]
[BlackTeam "RUS"]
[WhiteClock "0:00:00"]
[BlackClock "0:00:09"]

1. e4 {[%clk 0:03:00]}  c6 {[%clk 0:02:59]} 2. d4 {[%clk 0:03:00]}  d5 {[%clk 0:03:00]} 3. exd5 {[%clk 0:03:00]}  cxd5 {[%clk 0:03:01]} 4. Bd3 {[%clk 0:02:59]}  Nc6 {[%clk 0:03:01]} 5. c3 {[%clk 0:02:58]}  Nf6 {[%clk 0:03:02]} 6. h3 {[%clk 0:02:57]}  e5 {[%clk 0:03:02]} 7. dxe5 {[%clk 0:02:55]}  Nxe5 {[%clk 0:03:03]} 8. Nf3 {[%clk 0:02:55]}  Nxd3+ {[%clk 0:03:03]} 9. Qxd3 {[%clk 0:02:56]}  Bd6 {[%clk 0:03:04]} 10. O-O {[%clk 0:02:54]}  O-O {[%clk 0:03:04]} 11. Bg5 {[%clk 0:02:53]}  h6 {[%clk 0:03:05]} 12. Bh4 {[%clk 0:02:53]}  g5 {[%clk 0:03:05]} 13. Bg3 {[%clk 0:02:52]}  Bxg3 {[%clk 0:03:06]} 14. fxg3 {[%clk 0:02:51]}  g4 {[%clk 0:03:06]} 15. hxg4 {[%clk 0:02:44]}  Qb6+ {[%clk 0:02:56]} 16. Qd4 {[%clk 0:02:41]}  Qxd4+ {[%clk 0:02:52]} 17. Nxd4 {[%clk 0:02:42]}  Nxg4 {[%clk 0:02:52]} 18. Nd2 {[%clk 0:02:37]}  Bd7 {[%clk 0:02:51]} 19. Rae1 {[%clk 0:02:32]}  Rfe8 {[%clk 0:02:50]} 20. N2f3 {[%clk 0:02:30]}  Ne3 {[%clk 0:02:39]} 21. Rf2 {[%clk 0:02:27]}  Nc4 {[%clk 0:02:39]} 22. Rfe2 {[%clk 0:02:17]}  Kf8 {[%clk 0:02:28]} 23. Kf2 {[%clk 0:02:11]}  a5 {[%clk 0:02:17]} 24. Ne5 {[%clk 0:01:58]}  Nb6 {[%clk 0:01:33]} 25. Nxd7+ {[%clk 0:01:28]}  Nxd7 {[%clk 0:01:32]} 26. Kf3 {[%clk 0:01:25]}  Rxe2 {[%clk 0:01:25]} 27. Rxe2 {[%clk 0:01:25]}  Ra6 {[%clk 0:01:24]} 28. g4 {[%clk 0:01:09]}  Rf6+ {[%clk 0:01:23]} 29. Nf5 {[%clk 0:01:06]}  h5 {[%clk 0:01:21]} 30. Kf4 {[%clk 0:00:56]}  hxg4 {[%clk 0:01:18]} 31. Kxg4 {[%clk 0:00:53]}  Rg6+ {[%clk 0:01:18]} 32. Kf3 {[%clk 0:00:50]}  Rb6 {[%clk 0:01:07]} 33. g4 {[%clk 0:00:38]}  f6 {[%clk 0:01:06]} 34. Rh2 {[%clk 0:00:34]}  Ne5+ {[%clk 0:01:05]} 35. Kg3 {[%clk 0:00:31]}  Ng6 {[%clk 0:01:02]} 36. Rd2 {[%clk 0:00:15]}  Kf7 {[%clk 0:00:49]} 37. Ne3 {[%clk 0:00:12]}  Re6 {[%clk 0:00:34]} 38. Nxd5 {[%clk 0:00:11]}  b5 {[%clk 0:00:34]} 39. Nc7 {[%clk 0:00:10]}  Re3+ {[%clk 0:00:32]} 40. Kf2 {[%clk 0:00:10]}  Re5 {[%clk 0:00:32]} 41. Rd5 {[%clk 0:00:09]}  Re4 {[%clk 0:00:27]} 42. Rxb5 {[%clk 0:00:08]}  Ne5 {[%clk 0:00:20]} 43. Rxa5 {[%clk 0:00:08]}  Rf4+ {[%clk 0:00:17]} 44. Ke2 {[%clk 0:00:08]}  Re4+ {[%clk 0:00:17]} 45. Kd1 {[%clk 0:00:06]}  Rxg4 {[%clk 0:00:17]} 46. Kc2 {[%clk 0:00:06]}  Rg2+ {[%clk 0:00:16]} 47. Kb3 {[%clk 0:00:06]}  Nd3 {[%clk 0:00:16]} 48. Ra7 {[%clk 0:00:05]}  Rxb2+ {[%clk 0:00:16]} 49. Kc4 {[%clk 0:00:04]}  Ne5+ {[%clk 0:00:16]} 50. Kd4 {[%clk 0:00:04]}  Nc6+ {[%clk 0:00:14]} 51. Kc5 {[%clk 0:00:03]}  Nxa7 {[%clk 0:00:15]} 52. Nd5 {[%clk 0:00:02]}  Rxa2 {[%clk 0:00:15]} 53. c4 {[%clk 0:00:02]}  Ke6 {[%clk 0:00:14]} 54. Kb6 {[%clk 0:00:02]}  Nc8+ {[%clk 0:00:13]} 55. Kc7 {[%clk 0:00:02]}  Ne7 {[%clk 0:00:10]} 56. Nf4+ {[%clk 0:00:01]}  Ke5 {[%clk 0:00:09]} 57. Nd3+ {[%clk 0:00:01]}  Kd4 {[%clk 0:00:09]} 58. Nb4 {[%clk 0:00:00]}  Ra4 {[%clk 0:00:09]} 0-1

[Event "December 5 Late 2023"]
[Site "https://www.chess.com"]
[Date "2023.12.05"]
[Round "6"]
[White "Przybylski, Wojciech"]
[Black "Yuan, Qingyu"]
[Result "0-1"]
[Board "44"]
[TimeControl "180+1"]
[WhiteFideId "1117599"]
[BlackFideId "8609772"]
[WhiteElo "2555"]
[BlackElo "2814"]
[WhiteTeam "POL"]
[BlackTeam "CHN"]
[WhiteClock "0:00:02"]
[BlackClock "0:00:17"]

1. e4 {[%clk 0:03:00]}  e5 {[%clk 0:02:57]} 2. Nf3 {[%clk 0:03:00]}  Nc6 {[%clk 0:02:58]} 3. Bb5 {[%clk 0:03:00]}  Nf6 {[%clk 0:02:58]} 4. O-O {[%clk 0:02:59]}  Nxe4 {[%clk 0:02:58]} 5. d4 {[%clk 0:02:59]}  Nd6 {[%clk 0:02:59]} 6. Ba4 {[%clk 0:02:53]}  e4 {[%clk 0:02:56]} 7. Ne5 {[%clk 0:02:52]}  Be7 {[%clk 0:02:56]} 8. Nc3 {[%clk 0:02:49]}  O-O {[%clk 0:02:53]} 9. Re1 {[%clk 0:02:45]}  f5 {[%clk 0:02:47]} 10. Bb3+ {[%clk 0:02:39]}  Kh8 {[%clk 0:02:47]} 11. Qh5 {[%clk 0:02:39]}  Qe8 {[%clk 0:02:41]} 12. Qd1 {[%clk 0:02:14]}  Nd8 {[%clk 0:02:09]} 13. f3 {[%clk 0:02:01]}  exf3 {[%clk 0:02:04]} 14. Qxf3 {[%clk 0:02:00]}  Ne6 {[%clk 0:02:03]} 15. Be3 {[%clk 0:01:57]}  Rb8 {[%clk 0:01:46]} 16. Nd5 {[%clk 0:01:43]}  Bd8 {[%clk 0:01:37]} 17. c4 {[%clk 0:01:37]}  b6 {[%clk 0:01:37]} 18. Bf2 {[%clk 0:01:21]}  Bb7 {[%clk 0:01:34]} 19. Bc2 {[%clk 0:01:17]}  Ng5 {[%clk 0:01:25]} 20. Qe2 {[%clk 0:00:44]}  Nge4 {[%clk 0:01:22]} 21. Nf4 {[%clk 0:00:42]}  Bf6 {[%clk 0:01:16]} 22. Nf3 {[%clk 0:00:30]}  Qf7 {[%clk 0:01:03]} 23. Bb3 {[%clk 0:00:28]}  c5 {[%clk 0:00:54]} 24. d5 {[%clk 0:00:23]}  Rbe8 {[%clk 0:00:48]} 25. Qc2 {[%clk 0:00:13]}  Ba6 {[%clk 0:00:47]} 26. Nd3 {[%clk 0:00:08]}  Re7 {[%clk 0:00:42]} 27. Rad1 {[%clk 0:00:07]}  Rfe8 {[%clk 0:00:42]} 28. Be3 {[%clk 0:00:06]}  h6 {[%clk 0:00:42]} 29. Bc1 {[%clk 0:00:06]}  g5 {[%clk 0:00:42]} 30. h3 {[%clk 0:00:06]}  Qg7 {[%clk 0:00:38]} 31. Kh2 {[%clk 0:00:06]}  f4 {[%clk 0:00:34]} 32. Re2 {[%clk 0:00:06]}  Nf5 {[%clk 0:00:30]} 33. Rde1 {[%clk 0:00:06]}  Nfg3 {[%clk 0:00:31]} 34. Rxe4 {[%clk 0:00:05]}  Rxe4 {[%clk 0:00:29]} 35. Rxe4 {[%clk 0:00:05]}  Rxe4 {[%clk 0:00:30]} 36. Qd1 {[%clk 0:00:04]}  d6 {[%clk 0:00:27]} 37. Bc2 {[%clk 0:00:03]}  Re8 {[%clk 0:00:25]} 38. b3 {[%clk 0:00:03]}  Bc8 {[%clk 0:00:21]} 39. Nf2 {[%clk 0:00:04]}  Bf5 {[%clk 0:00:21]} 40. Bxf5 {[%clk 0:00:03]}  Nxf5 {[%clk 0:00:22]} 41. Ng4 {[%clk 0:00:03]}  Bc3 {[%clk 0:00:21]} 42. Qd3 {[%clk 0:00:03]}  Rf8 {[%clk 0:00:19]} 43. a3 {[%clk 0:00:03]}  h5 {[%clk 0:00:19]} 44. Nf2 {[%clk 0:00:04]}  Be5 {[%clk 0:00:18]} 45. Ne4 {[%clk 0:00:04]}  g4 {[%clk 0:00:18]} 46. Nfg5 {[%clk 0:00:04]}  f3+ {[%clk 0:00:18]} 47. g3 {[%clk 0:00:03]}  h4 {[%clk 0:00:15]} 48. hxg4 {[%clk 0:00:03]}  hxg3+ {[%clk 0:00:15]} 49. Kg1 {[%clk 0:00:03]}  Bd4+ {[%clk 0:00:12]} 50. Kf1 {[%clk 0:00:03]}  g2+ {[%clk 0:00:13]} 51. Ke1 {[%clk 0:00:03]}  g1=Q+ {[%clk 0:00:14]} 52. Kd2 {[%clk 0:00:04]}  Qg2+ {[%clk 0:00:14]} 53. Kd1 {[%clk 0:00:04]}  Qe2+ {[%clk 0:00:13]} 54. Qxe2 {[%clk 0:00:04]}  fxe2+ {[%clk 0:00:14]} 55. Kxe2 {[%clk 0:00:05]}  Nh6 {[%clk 0:00:14]} 56. Bd2 {[%clk 0:00:04]}  Nxg4 {[%clk 0:00:14]} 57. Kd3 {[%clk 0:00:04]}  Qg6 {[%clk 0:00:14]} 58. Ne6 {[%clk 0:00:03]}  Ne5+ {[%clk 0:00:14]} 59. Kc2 {[%clk 0:00:03]}  Rf2 {[%clk 0:00:14]} 60. Ng5 {[%clk 0:00:03]}  Rg2 {[%clk 0:00:14]} 61. Kd1 {[%clk 0:00:02]}  Qh5+ {[%clk 0:00:13]} 62. Kc2 {[%clk 0:00:02]}  Qg6 {[%clk 0:00:13]} 63. Kd1 {[%clk 0:00:02]}  a6 {[%clk 0:00:13]} 64. a4 {[%clk 0:00:02]}  Rxg5 {[%clk 0:00:12]} 65. Nxg5 {[%clk 0:00:02]}  Qb1+ {[%clk 0:00:12]} 66. Ke2 {[%clk 0:00:02]}  Qxb3 {[%clk 0:00:13]} 67. Ne6 {[%clk 0:00:02]}  Qxc4+ {[%clk 0:00:14]} 68. Kd1 {[%clk 0:00:02]}  Qb3+ {[%clk 0:00:14]} 69. Ke2 {[%clk 0:00:02]}  Qf3+ {[%clk 0:00:14]} 70. Ke1 {[%clk 0:00:02]}  Bf2+ {[%clk 0:00:14]} 71. Kf1 {[%clk 0:00:02]}  Bg3+ {[%clk 0:00:15]} 72. Kg1 {[%clk 0:00:02]}  Qf2+ {[%clk 0:00:16]} 73. Kh1 {[%clk 0:00:02]}  Qf1# {[%clk 0:00:17]} 0-1